bitfinex-derivatives/quotes_ETHF0:USTF0_20240831
["timestamp","ask_amount","ask_price","bid_price","bid_amount"]
[1725111564548,6.24533559,2525.7,2525.6,0.00593249]
[1725111566344,6.48287559,2525.7,2525.6,0.00593249]
[1725111570847,5.75157559,2525.7,2525.6,0.00593249]
[1725111577349,4.51403559,2525.7,2525.6,3.96513249]
[1725111577548,7.59230012,2526.5,2525.7,0.23754]
[1725111577549,1.0,2526.1,2525.7,0.23754]
[1725111577847,1.1998788,2526.1,2525.8,1.34493]
[1725111578347,3.2078,2526.2,2526.0,0.23751]
[1725111579541,3.2078,2526.2,2525.9,0.23752]
[1725111581554,1.23749,2526.3,2525.9,0.23752]
[1725111583860,1.0,2526.3,2525.9,0.23752]
[1725111585047,1.23749,2526.3,2525.9,0.23752]
[1725111585460,1.23749,2526.3,2526.0,0.23751]
[1725111586062,1.23749,2526.3,2526.1,0.3613]
[1725111586259,1.23749,2526.3,2526.2,0.7482]
[1725111588364,1.0,2526.3,2526.2,0.7482]
[1725111594366,1.0,2526.3,2526.2,0.98569]
[1725111594566,1.0,2526.3,2526.2,0.7482]
[1725111594952,1.0,2526.3,2526.2,0.98569]
[1725111595162,1.0,2526.3,2526.2,0.7482]
[1725111596650,1.3577,2526.3,2526.2,0.7482]
[1725111597065,1.0,2526.3,2526.2,0.7482]
[1725111598459,1.23749,2526.3,2526.1,0.3613]
[1725111598658,1.23749,2526.2,2525.8,0.99663]
[1725111598866,1.716,2526.2,2525.9,0.23752]
[1725111599067,1.3583,2526.2,2525.9,0.23752]
[1725111599469,1.3583,2526.2,2526.0,0.23751]
[1725111599867,1.3583,2526.2,2526.1,0.3677]
[1725111600669,1.3583,2526.2,2526.1,0.6052]
[1725111600971,1.0,2526.3,2526.2,0.23749]
[1725111601160,1.0,2526.3,2526.2,0.99079]
[1725111601359,1.0,2526.3,2526.2,0.7533]
[1725111603166,4.2078,2526.3,2526.2,0.7533]
[1725111603866,4.2078,2526.3,2526.2,0.99079]
[1725111604059,3.2078,2526.7,2526.2,4.7117]
[1725111604265,3.2078,2526.7,2526.6,0.23746]
[1725111606377,4.2078,2526.7,2526.5,0.23746]
[1725111606571,4.5694,2526.7,2526.5,0.23746]
[1725111607272,4.5694,2526.7,2526.2,0.7533]
[1725111608468,4.2078,2526.7,2526.2,0.7533]
[1725111608976,3.2078,2526.7,2526.6,0.23746]
[1725111609482,3.2078,2526.7,2526.6,4.19506]
[1725111610277,4.2078,2526.8,2526.6,4.19506]
[1725111610472,4.2078,2526.8,2526.7,0.7389]
[1725111610671,4.2078,2526.8,2526.7,1.36575]
[1725111615281,4.2078,2526.8,2526.7,1.1283]
[1725111615474,4.2078,2526.8,2526.7,1.36575]
[1725111616671,4.2078,2526.8,2526.7,1.1283]
[1725111617983,4.2078,2526.8,2526.7,1.36575]
[1725111619589,1.0,2526.8,2526.7,1.36575]
[1725111619889,4.2078,2526.8,2526.7,1.1283]
[1725111620578,4.2078,2526.8,2526.6,0.23745]
[1725111620780,4.5902,2526.8,2526.6,0.23745]
[1725111623485,4.5902,2526.8,2526.7,0.3773]
[1725111635288,4.5902,2526.8,2526.3,0.7624]
[1725111635489,4.82765,2526.8,2526.4,0.61837]
[1725111635794,0.23745,2526.7,2526.4,0.3809]
[1725111636094,1.0,2526.6,2526.4,0.3809]
[1725111636292,1.3746,2526.6,2526.4,0.3809]
[1725111643089,1.61207,2526.6,2526.4,0.3809]
[1725111645895,1.3746,2526.6,2526.2,4.158]
[1725111646200,1.0,2526.4,2526.2,4.5262]
[1725111646503,4.94605345,2526.3,2526.2,4.158]
[1725111646708,5.18353345,2526.3,2526.2,4.158]
[1725111648706,4.94605345,2526.3,2526.2,4.158]
[1725111649795,4.94605345,2526.3,2526.1,0.3814]
[1725111650705,6.18354345,2526.3,2525.9,0.7268]
[1725111650907,1.0,2526.1,2525.9,1.0828]
[1725111652105,0.60399,2526.3,2525.9,1.0828]
[1725111652106,1.0,2526.3,2525.9,1.0828]
[1725111652304,1.0,2526.3,2526.0,0.23751]
[1725111653101,1.23749,2526.3,2526.0,0.23751]
[1725111653300,1.0,2526.3,2526.0,0.23751]
[1725111655804,1.0,2526.3,2526.1,0.2375]
[1725111656195,1.0,2526.3,2526.2,0.3516]
[1725111657196,1.23749,2526.3,2525.8,3.2078]
[1725111657409,1.1106,2526.2,2525.9,0.3668]
[1725111657800,1.1106,2526.2,2526.0,0.23751]
[1725111658610,1.0,2526.3,2526.1,0.2375]
[1725111658809,1.0,2526.3,2526.2,0.3668]
[1725111663124,1.0,2526.3,2526.2,1.1189]
[1725111663503,1.0,2526.3,2526.2,0.7306]
[1725111663709,1.23748,2526.3,2526.2,0.7306]
[1725111663914,1.0,2526.3,2526.2,0.3668]
[1725111676826,3.83377,2526.5,2526.2,4.3252]
[1725111676827,7.0948,2526.5,2526.2,4.3252]
[1725111677020,7.0948,2526.5,2526.3,0.97998]
[1725111679123,7.0948,2526.5,2526.3,0.7425]
[1725111679324,7.33227,2526.5,2526.3,0.7425]
[1725111679626,7.33227,2526.5,2526.3,0.3765]
[1725111679823,0.3859,2526.4,2526.3,0.3765]
[1725111681529,7.0948,2526.5,2526.3,0.3765]
[1725111681932,3.887,2526.5,2526.3,0.3765]
[1725111683425,4.255,2526.5,2526.3,0.3765]
[1725111684619,8.4598146,2526.4,2525.9,0.358]
[1725111684830,0.23753,2525.8,2525.7,0.3743]
[1725111685026,0.23754,2525.7,2525.6,0.00593249]
[1725111685235,4.54214,2525.7,2525.6,0.00593249]
[1725111687037,4.3046,2525.7,2525.6,0.00593249]
[1725111687738,4.54214,2525.7,2525.6,0.00593249]
[1725111699145,3.9384,2525.7,2525.6,0.00593249]
[1725111699444,4.5704,2525.7,2525.6,0.00593249]
[1725111701847,7.0958,2525.7,2525.6,0.00593249]
[1725111702045,7.0958,2525.7,2525.6,0.24348249]
[1725111703644,4.2078,2525.7,2525.6,4.20268249]
[1725111711743,1.0,2525.7,2525.6,4.20268249]
[1725111713954,1.0,2525.8,2525.7,0.23754]
[1725111714150,1.0,2525.8,2525.7,0.96264]
[1725111714348,1.0,2525.8,2525.7,4.92184]
[1725111714550,4.2078,2526.0,2525.9,0.23752]
[1725111714751,1.0,2526.0,2525.9,0.23752]
[1725111714956,1.0,2526.0,2525.9,4.19672]
[1725111720257,1.0,2526.2,2526.1,0.2375]
[1725111720558,4.2078,2526.4,2526.3,0.23748]
[1725111721256,4.2078,2526.4,2526.3,0.3708]
[1725111733160,4.5978,2526.4,2526.3,0.3708]
[1725111734771,4.5978,2526.4,2526.0,0.3607]
[1725111734772,4.83528,2526.4,2526.0,0.59821]
[1725111734973,1.0,2526.3,2526.0,0.59821]
[1725111735366,1.0,2526.3,2526.1,0.3898]
[1725111736565,1.23749,2526.3,2526.1,0.3898]
[1725111736765,0.7327,2526.2,2526.1,0.3898]
[1725111739074,0.9702,2526.2,2526.0,0.3607]
[1725111739378,1.3583,2526.1,2526.0,0.3607]
[1725111740069,1.3583,2526.1,2526.0,4.3191]
[1725111740470,1.3583,2526.1,2526.0,0.3607]
[1725111749884,1.0,2526.1,2526.0,0.3607]
[1725111756087,1.0,2526.1,2525.9,0.3534]
[1725111760889,1.2375,2526.1,2525.9,0.3534]
[1725111761689,1.0,2526.1,2525.9,0.3534]
[1725111762380,1.2375,2526.1,2525.9,0.3534]
[1725111763183,3.44531,2526.0,2525.9,0.3534]
[1725111763981,3.79871,2526.0,2525.9,0.3534]
[1725111764192,0.23754,2525.8,2525.6,4.16393249]
[1725111764393,1.0,2525.7,2525.6,0.00593249]
[1725111764791,1.23754,2525.7,2525.6,0.00593249]
[1725111768695,1.0,2525.7,2525.6,0.00593249]
[1725111769999,2.30894,2525.7,2525.6,0.00593249]
[1725111771900,0.23751,2526.0,2525.6,4.20268249]
[1725111772090,0.23751,2526.0,2525.6,0.24348249]
[1725111772690,1.23751,2526.1,2525.7,0.23754]
[1725111772890,1.23751,2526.1,2525.8,0.7513]
[1725111773093,1.23751,2526.1,2525.8,1.1318]
[1725111773287,0.23751,2526.0,2525.8,1.1318]
[1725111773500,1.23751,2526.1,2525.8,1.1318]
[1725111774692,1.0,2526.1,2525.8,1.1318]
[1725111774892,1.0,2526.2,2525.8,5.3396]
[1725111775206,1.0,2526.4,2526.2,0.23749]
[1725111775401,1.0,2526.4,2526.3,1.1142]
[1725111777509,3.2078,2526.6,2526.3,1.1142]
[1725111777697,3.2078,2526.6,2526.4,0.23747]
[1725111777904,5.58185035,2526.5,2526.4,0.23747]
[1725111778210,1.0,2526.5,2526.4,0.23747]
[1725111781519,1.0,2526.5,2526.3,1.35168]
[1725111785805,1.0,2526.4,2526.3,1.1142]
[1725111786299,1.0,2526.4,2526.3,0.3556]
[1725111786502,1.3715,2526.4,2526.3,0.3556]
[1725111790406,8.5377,2526.4,2525.9,0.7549]
[1725111790615,1.0,2526.0,2525.9,1.1279]
[1725111791611,1.23751,2526.0,2525.9,0.7571]
[1725111796912,1.0,2526.0,2525.9,0.7571]
[1725111799221,1.7154,2526.0,2525.9,0.7571]
[1725111801525,1.7154,2526.0,2525.8,3.2078]
[1725111801723,1.7154,2526.0,2525.8,3.5759]
[1725111802030,1.3528,2526.0,2525.8,3.5759]
[1725111803226,1.0,2526.0,2525.8,3.5759]
[1725111806046,1.0,2526.0,2525.8,0.3681]
[1725111808235,1.23751,2526.0,2525.8,0.3681]
[1725111813236,1.0,2526.0,2525.8,0.3681]
[1725111813437,1.0,2526.0,2525.8,0.60563]
[1725111813651,1.0,2526.0,2525.8,0.3681]
[1725111815440,1.0,2526.0,2525.8,0.60563]
[1725111815945,1.0,2526.1,2525.9,0.23752]
[1725111816848,1.0,2526.1,2525.8,0.60563]
[1725111819339,1.2375,2526.1,2525.8,0.60563]
[1725111819737,1.0,2525.9,2525.8,0.60563]
[1725111820138,1.0,2525.9,2525.8,0.3681]
[1725111821159,1.0,2525.9,2525.8,0.60563]
[1725111826760,1.2375,2526.2,2525.9,0.23752]
[1725111831563,1.0,2526.2,2525.8,0.3681]
[1725111831868,1.0,2526.2,2526.1,0.2375]
[1725111832663,4.62493766,2526.4,2526.3,0.23748]
[1725111832871,1.0,2526.4,2526.3,0.23748]
[1725111838159,1.0,2526.4,2526.2,1.33609]
[1725111838558,1.3675,2526.4,2526.2,1.33609]
[1725111847660,1.0,2526.4,2526.3,0.23748]
[1725111850676,1.0,2526.5,2526.4,0.23747]
[1725111850979,1.371,2526.7,2526.6,0.23746]
[1725111851284,4.9576,2526.7,2526.6,0.23746]
[1725111851577,1.0,2526.7,2526.6,0.23746]
[1725111854771,1.0,2526.7,2526.2,1.0986]
[1725111854772,1.0,2526.7,2526.5,0.23746]
[1725111854970,1.0,2526.7,2526.6,0.3862]
[1725111872592,1.0,2526.7,2526.6,0.7497]
[1725111873897,1.0,2526.7,2526.6,0.98716]
[1725111877484,1.0,2526.7,2526.6,0.7497]
[1725111880599,1.0,2526.7,2526.6,0.3862]
[1725111892191,1.0,2526.7,2526.3,0.58918]
[1725111892192,1.23745,2526.7,2526.3,0.58918]
[1725111892395,1.0,2526.5,2526.4,0.62248]
[1725111892605,1.0,2526.5,2526.4,0.385]
[1725111896508,4.2078,2526.5,2526.2,4.158]
[1725111896815,0.23748,2526.3,2526.2,0.3575]
[1725111897010,1.23748,2526.3,2526.2,0.3575]
[1725111898512,1.97578,2526.3,2526.2,0.3575]
[1725111899904,1.7383,2526.3,2526.0,0.7439]
[1725111900100,1.2375,2526.1,2526.0,1.101]
[1725111900302,1.2375,2526.1,2525.8,4.158]
[1725111900303,0.23752,2525.9,2525.8,4.158]
[1725111900505,4.44532,2525.9,2525.8,4.158]
[1725111900903,2.885,2526.1,2525.8,4.5462]
[1725111901104,3.885,2526.1,2525.8,4.5462]
[1725111901313,3.885,2526.1,2525.8,4.78373]
[1725111902515,1.0,2526.3,2525.8,8.5054]
[1725111902822,3.62493766,2526.4,2525.8,8.5054]
[1725111902823,1.0,2526.4,2526.1,0.2375]
[1725111903001,1.0,2526.4,2526.2,1.1214]
[1725111903619,1.0,2526.4,2526.2,1.35889]
[1725111904118,3.885,2526.6,2526.3,0.23748]
[1725111904707,4.12246,2526.6,2526.3,0.23748]
[1725111910100,1.0,2526.6,2526.2,4.3292]
[1725111910308,1.0,2526.8,2526.5,0.23747]
[1725111910611,1.0,2526.8,2526.6,1.1196]
[1725111912708,1.0,2526.8,2526.6,1.35706]
[1725111913015,1.0,2526.8,2526.6,1.1196]
[1725111913208,1.23744,2526.8,2526.6,1.1196]
[1725111913407,1.97824,2526.8,2526.6,1.1196]
[1725111913612,1.7408,2526.8,2526.6,1.1196]
[1725111916421,1.0,2526.8,2526.6,1.1196]
[1725111916723,1.0,2526.8,2526.6,1.35706]
[1725111917224,3.21373249,2527.0,2526.8,0.23744]
[1725111917413,3.21373249,2527.0,2526.9,0.59653]
[1725111917609,3.21373249,2527.0,2526.9,4.55413]
[1725111918513,3.21373249,2527.0,2526.9,11.55413]
[1725111918719,3.86231766,2527.5,2527.2,0.2374]
[1725111918720,3.2078,2527.4,2527.2,0.2374]
[1725111918911,3.2078,2527.4,2527.3,1.0869]
[1725111919617,4.2078,2527.4,2527.3,1.0869]
[1725111920620,4.44518,2527.4,2527.3,1.0869]
[1725111921018,0.23739,2527.3,2527.1,0.00593249]
[1725111921321,1.0,2527.2,2527.1,0.00593249]
[1725111921827,1.0,2527.2,2527.1,0.39423249]
[1725111922518,1.2374,2527.2,2527.1,0.39423249]
[1725111924420,5.78771,2527.2,2527.1,0.00593249]
[1725111924627,10.16706085,2527.2,2527.1,0.00593249]
[1725111926616,13.05106085,2527.2,2527.1,0.00593249]
[1725111927627,12.45755085,2527.2,2527.1,0.00593249]
[1725111940845,12.82291257,2527.2,2527.1,0.00593249]
[1725111942142,8.86611257,2527.2,2527.1,0.00593249]
[1725111942337,12.82291257,2527.2,2527.1,0.00593249]
[1725111943548,13.41642257,2527.2,2527.1,0.00593249]
[1725111945044,17.04136023,2527.2,2527.1,0.00593249]
[1725111948355,13.41642257,2527.2,2527.1,0.00593249]
[1725111951355,17.56463949,2527.2,2527.1,0.00593249]
[1725111951858,13.41642257,2527.2,2527.1,0.00593249]
[1725111952451,0.23745,2526.7,2526.6,0.7353]
[1725111952650,1.23745,2526.7,2526.6,0.7353]
[1725111977066,1.0,2526.7,2526.6,0.7353]
[1725111981476,3.62934944,2527.0,2526.6,4.93035]
[1725111981682,2.884,2527.0,2526.6,0.7353]
[1725111981870,7.12765878,2527.0,2526.6,0.7353]
[1725111982579,7.12765878,2527.0,2526.8,0.23744]
[1725111982785,7.12765878,2527.0,2526.9,0.372]
[1725111982973,7.12765878,2527.0,2526.9,0.7515]
[1725111983278,2.884,2527.0,2526.9,4.94653]
[1725111985372,4.4452,2527.2,2526.9,4.94653]
[1725111985572,4.2078,2527.2,2527.0,0.355]
[1725111985880,4.2078,2527.2,2527.0,0.59242]
[1725111986583,1.0,2527.2,2527.0,0.59242]
[1725111987485,1.0,2527.2,2527.0,0.355]
[1725111988983,1.2374,2527.2,2527.0,0.355]
[1725111989177,1.0,2527.1,2527.0,0.355]
[1725111989887,1.0,2527.1,2527.0,4.3118]
[1725111991287,1.0,2527.1,2527.0,0.355]
[1725111993374,1.0,2527.1,2527.0,4.3118]
[1725111994179,1.0,2527.1,2527.0,0.355]
[1725111996285,1.2374,2527.2,2527.0,0.355]
[1725112003184,1.0,2527.2,2527.0,0.355]
[1725112003386,1.2374,2527.2,2527.0,0.355]
[1725112005099,0.23741,2527.1,2526.9,0.3795]
[1725112005392,0.61721,2527.1,2526.9,0.3795]
[1725112008892,0.3798,2527.1,2526.9,0.3795]
[1725112011002,0.61721,2527.1,2526.9,0.3795]
[1725112011892,0.3798,2527.1,2526.9,0.3795]
[1725112013901,0.61721,2527.1,2526.9,0.3795]
[1725112015504,9.25419623,2527.0,2526.6,4.158]
[1725112015694,0.23744,2526.8,2526.6,0.3722]
[1725112016895,1.23744,2526.8,2526.6,0.3722]
[1725112017203,0.23745,2526.7,2526.5,3.2078]
[1725112017394,1.0,2526.6,2526.5,3.2078]
[1725112021106,2.883,2526.8,2526.5,3.2078]
[1725112021305,2.883,2526.8,2526.6,0.3775]
[1725112021515,2.883,2526.8,2526.6,0.731]
[1725112021897,3.12044,2526.8,2526.6,0.731]
[1725112022105,2.883,2526.8,2526.6,0.731]
[1725112022603,1.0,2527.1,2526.6,4.92605]
[1725112022910,1.23741,2527.1,2526.6,0.96845]
[1725112023807,1.0,2527.1,2526.7,0.23744]
[1725112024010,6.51234944,2527.3,2526.8,3.80823]
[1725112024011,4.1204,2527.3,2526.8,3.80823]
[1725112024313,4.12039,2527.3,2526.9,0.3577]
[1725112024702,4.12039,2527.3,2527.0,0.3685]
[1725112025503,3.883,2527.3,2527.0,0.3685]
[1725112026304,2.883,2527.3,2527.0,0.3685]
[1725112026616,3.883,2527.3,2527.0,0.3685]
[1725112027000,1.0,2527.1,2527.0,0.3685]
[1725112029712,3.883,2527.3,2527.0,4.3253]
[1725112029919,1.0,2527.3,2527.0,0.3685]
[1725112030118,1.0,2527.3,2527.0,0.60592]
[1725112034411,1.0,2527.3,2527.1,0.23741]
[1725112034611,1.0,2527.3,2527.2,0.3552]
[1725112034811,1.0,2527.3,2527.2,0.7423]
[1725112037098,1.0,2527.3,2527.2,0.9797]
[1725112037313,4.2078,2527.5,2527.3,0.23739]
[1725112037515,4.2078,2527.5,2527.4,0.3696]
[1725112041809,4.587,2527.5,2527.2,0.9797]
[1725112042005,1.0,2527.4,2527.2,0.9797]
[1725112042616,1.0,2527.4,2527.2,0.7423]
[1725112043012,1.0,2527.4,2527.2,0.9797]
[1725112043813,1.0,2527.4,2527.2,0.3871]
[1725112044020,0.7579,2527.3,2527.2,0.3871]
[1725112052210,0.7579,2527.3,2526.9,4.5285]
[1725112052413,0.7579,2527.3,2526.9,4.8813]
[1725112052616,0.3736,2527.2,2526.9,4.8813]
[1725112053213,0.3736,2527.2,2526.9,5.11873]
[1725112053414,0.9953,2527.3,2526.9,5.11873]
[1725112054422,0.9953,2527.3,2526.9,0.96073]
[1725112055221,0.2374,2527.2,2526.9,0.7233]
[1725112056235,0.9953,2527.3,2526.9,0.96073]
[1725112056422,0.9953,2527.3,2526.7,0.3847]
[1725112056423,1.23742,2527.0,2526.7,0.3847]
[1725112056722,1.23742,2527.0,2526.7,0.7674]
[1725112067535,0.23744,2526.8,2526.7,0.7674]
[1725112067735,1.23744,2526.8,2526.7,0.3827]
[1725112069635,1.0,2526.8,2526.7,0.3827]
[1725112071236,1.0,2526.8,2526.5,0.718]
[1725112071438,1.0,2526.6,2526.4,4.16393249]
[1725112071942,0.99337,2526.5,2526.4,4.16393249]
[1725112073139,0.7559,2526.5,2526.4,4.16393249]
[1725112075333,0.7559,2526.5,2526.4,0.00593249]
[1725112080140,0.99337,2526.5,2526.4,0.00593249]
[1725112080343,0.7559,2526.5,2526.4,0.00593249]
[1725112085150,0.3838,2526.5,2526.4,0.00593249]
[1725112087844,1.62127,2526.5,2526.4,0.00593249]
[1725112088442,4.82907,2526.5,2526.4,0.00593249]
[1725112097256,5.21857,2526.5,2526.4,0.00593249]
[1725112103756,13.63193159,2526.5,2526.4,0.00593249]
[1725112107955,12.85863159,2526.5,2526.4,0.00593249]
[1725112108157,8.66276159,2526.5,2526.4,0.00593249]
[1725112108455,4.45496159,2526.5,2526.4,0.00593249]
[1725112108650,3.884,2526.7,2526.4,0.24340249]
[1725112108855,3.884,2526.7,2526.4,0.00593249]
[1725112110361,4.12145,2526.7,2526.4,0.00593249]
[1725112110963,1.0,2526.5,2526.4,0.00593249]
[1725112117668,12.82529511,2526.5,2526.4,0.00593249]
[1725112117871,17.58564455,2526.5,2526.4,0.00593249]
[1725112119468,0.23748,2526.4,2526.3,0.3515]
[1725112119673,3.86682944,2526.4,2526.3,0.3515]
[1725112119876,12.08658204,2526.4,2526.3,0.3515]
[1725112125870,0.23748,2526.3,2526.1,0.00593249]
[1725112126071,1.23748,2526.3,2526.1,0.00593249]
[1725112126274,4.36281306,2526.2,2526.1,0.00593249]
[1725112128978,4.60030306,2526.2,2526.1,0.00593249]
[1725112130982,11.76650306,2526.2,2526.1,0.00593249]
[1725112131175,12.14070306,2526.2,2526.1,0.00593249]
[1725112131379,12.49695306,2526.2,2525.9,1.0954]
[1725112131586,1.23751,2526.0,2525.9,0.7279]
[1725112131873,1.23751,2526.0,2525.6,4.158]
[1725112131874,0.23753,2525.8,2525.6,4.158]
[1725112132075,0.23753,2525.8,2525.7,0.3741]
[1725112133979,1.23753,2525.8,2525.7,0.3741]
[1725112139688,1.0,2525.8,2525.7,0.3741]
[1725112151193,1.0,2525.9,2525.7,4.57084]
[1725112151392,1.0,2525.9,2525.7,0.61164]
[1725112152991,1.0,2525.8,2525.7,0.3741]
[1725112153400,1.0,2525.8,2525.7,4.3333]
[1725112153697,1.0,2525.8,2525.7,0.3741]
[1725112153895,1.0,2525.8,2525.7,4.3333]
[1725112154393,1.0,2525.8,2525.7,7.5411]
[1725112154894,1.0,2525.8,2525.7,3.5819]
[1725112167814,9.41732309,2525.8,2525.7,0.3741]
[1725112169716,0.23754,2525.7,2525.5,0.72653249]
[1725112169908,1.0,2525.6,2525.5,0.72653249]
[1725112178715,9.48264142,2525.6,2525.5,0.00593249]
[1725112178922,5.52344142,2525.6,2525.5,0.00593249]
[1725112179223,1.0,2525.6,2525.5,0.00593249]
[1725112197322,3.63359569,2525.9,2525.5,10.96513249]
[1725112197527,0.00593249,2526.0,2525.6,3.2078]
[1725112197723,0.00593249,2526.0,2525.8,0.23753]
[1725112197923,1.00593249,2526.0,2525.9,0.7429]
[1725112198330,1.24344249,2526.0,2525.9,0.3848]
[1725112198538,1.00593249,2526.0,2525.9,0.3848]
[1725112199423,1.24344249,2526.0,2525.7,0.7344]
[1725112199631,1.0,2525.8,2525.7,0.7344]
[1725112200116,1.0,2525.8,2525.7,4.6936]
[1725112202229,1.0,2525.8,2525.7,0.7344]
[1725112204330,1.0,2525.8,2525.7,4.93114]
[1725112204532,1.0,2525.8,2525.7,4.6936]
[1725112206238,1.0,2525.8,2525.7,0.7344]
[1725112210229,1.0,2525.8,2525.7,0.3763]
[1725112210835,1.0,2525.8,2525.7,0.7624]
[1725112214943,1.0,2525.8,2525.7,0.3763]
[1725112215240,1.3578,2525.8,2525.7,0.3763]
[1725112217944,1.3578,2525.8,2525.5,0.00593249]
[1725112218244,1.0,2525.6,2525.5,0.00593249]
[1725112219333,5.19675,2525.6,2525.5,0.00593249]
[1725112219545,9.45746402,2525.6,2525.5,0.00593249]
[1725112219945,10.18366402,2525.6,2525.5,0.00593249]
[1725112222346,10.42121402,2525.6,2525.5,0.00593249]
[1725112222938,16.42121402,2525.6,2525.5,0.00593249]
[1725112223740,19.62901402,2525.6,2525.5,0.00593249]
[1725112225037,13.62901402,2525.6,2525.5,0.00593249]
[1725112227148,0.23757,2525.4,2525.2,4.5419]
[1725112227347,1.61078,2525.3,2525.2,4.5419]
[1725112227549,0.23759,2525.2,2525.1,0.3618]
[1725112229048,0.23759,2525.2,2524.9,0.75363249]
[1725112229251,1.0,2525.0,2524.9,0.75363249]
[1725112232752,0.60949,2525.2,2524.9,0.75363249]
[1725112233047,1.0,2525.1,2524.9,0.75363249]
[1725112233246,5.19458751,2525.1,2524.9,0.75363249]
[1725112238151,4.19458751,2525.1,2525.0,4.19761]
[1725112238449,3.63359569,2525.7,2525.4,0.23757]
[1725112238450,1.0,2525.5,2525.4,0.23757]
[1725112238751,1.0,2525.5,2525.3,0.23757]
[1725112238953,1.0,2525.5,2525.4,0.7236]
[1725112244245,1.23756,2525.5,2525.2,3.2078]
[1725112244450,1.0,2525.3,2525.2,3.2078]
[1725112244648,1.23758,2525.3,2525.2,3.2078]
[1725112244854,12.55724746,2525.3,2525.0,4.158]
[1725112245054,7.59724746,2525.3,2525.1,0.7526]
[1725112246253,1.0,2525.2,2525.1,0.7526]
[1725112250957,9.14512409,2525.2,2524.9,0.00593249]
[1725112251162,1.0,2525.0,2524.9,0.00593249]
[1725112256769,1.0,2525.0,2524.9,0.35793249]
[1725112260769,3.9568,2525.3,2524.9,0.59554249]
[1725112260770,3.44538,2525.3,2524.9,0.59554249]
[1725112260965,1.0,2525.2,2524.9,0.35793249]
[1725112261167,5.51005359,2525.2,2524.9,0.35793249]
[1725112265270,5.88385359,2525.2,2524.9,0.35793249]
[1725112265470,1.0,2525.0,2524.9,0.35793249]
[1725112270375,5.22868513,2525.0,2524.9,0.35793249]
[1725112272975,12.63489513,2525.0,2524.9,0.00593249]
[1725112273182,13.02079513,2525.0,2524.9,0.00593249]
[1725112273677,16.65439082,2525.0,2524.9,0.00593249]
[1725112273868,16.65439082,2525.0,2524.6,0.3618]
[1725112273869,0.23764,2524.7,2524.6,0.3618]
[1725112274178,3.2078,2524.7,2524.0,1.0355829]
[1725112274381,3.2078,2524.1,2523.6,1.3973829]
[1725112274584,1.0,2523.7,2523.6,0.3618]
[1725112275173,0.00593249,2523.9,2523.6,4.3242]
[1725112275377,0.00593249,2523.9,2523.7,0.23773]
[1725112275882,0.00593249,2523.9,2523.7,4.20013]
[1725112276274,0.00593249,2523.9,2523.8,0.23772]
[1725112276583,3.2078,2524.4,2524.0,1.0]
[1725112276774,4.2078,2524.4,2524.1,0.62739]
[1725112276967,4.2078,2524.4,2524.2,0.3679]
[1725112278066,3.2078,2524.4,2524.3,3.9616]
[1725112278270,3.2078,2524.4,2524.2,0.3679]
[1725112279282,5.6078,2524.4,2524.2,0.3679]
[1725112279694,5.6078,2524.4,2524.2,0.724]
[1725112282078,3.2078,2524.4,2524.2,0.724]
[1725112282387,3.2078,2524.4,2524.2,0.96168]
[1725112282678,3.2078,2524.4,2524.2,0.724]
[1725112285089,3.44546,2524.4,2524.2,0.724]
[1725112285287,4.35701124,2524.3,2524.1,0.3897]
[1725112285786,4.35701124,2524.3,2524.1,0.7443]
[1725112289088,0.23768,2524.2,2524.1,0.3897]
[1725112289284,0.23768,2524.2,2524.0,0.00593249]
[1725112289285,0.60988,2524.2,2524.0,0.00593249]
[1725112289482,4.68273084,2524.2,2524.0,0.00593249]
[1725112289787,4.92042084,2524.2,2524.0,0.00593249]
[1725112290179,3.44549,2524.1,2524.0,0.00593249]
[1725112290378,3.82439,2524.1,2524.0,0.00593249]
[1725112290579,13.78599,2524.1,2524.0,0.00593249]
[1725112290784,17.94725225,2524.1,2524.0,0.00593249]
[1725112291285,11.94725225,2524.1,2524.0,0.00593249]
[1725112291491,17.94725225,2524.1,2524.0,0.00593249]
[1725112291692,11.94725225,2524.1,2524.0,0.00593249]
[1725112291885,11.70956225,2524.1,2524.0,0.00593249]
[1725112292786,14.65256225,2524.1,2524.0,0.00593249]
[1725112293086,14.65256225,2524.1,2524.0,0.37593249]
[1725112293292,14.65256225,2524.1,2524.0,0.00593249]
[1725112295593,10.31206225,2524.1,2524.0,0.00593249]
[1725112296391,10.31206225,2524.1,2524.0,0.24363249]
[1725112296796,7.36906225,2524.1,2524.0,0.24363249]
[1725112297098,3.2078,2524.1,2524.0,0.24363249]
[1725112297692,3.2078,2524.1,2524.0,0.00593249]
[1725112298397,7.77849,2524.1,2524.0,0.00593249]
[1725112298591,12.13081782,2524.1,2524.0,0.00593249]
[1725112298793,11.89312782,2524.1,2524.0,0.00593249]
[1725112299193,12.13081782,2524.1,2524.0,0.00593249]
[1725112299697,11.89312782,2524.1,2524.0,0.00593249]
[1725112299888,12.13081782,2524.1,2524.0,0.00593249]
[1725112301500,11.89312782,2524.1,2524.0,0.00593249]
[1725112302909,7.93152782,2524.1,2524.0,0.00593249]
[1725112303094,11.89312782,2524.1,2524.0,0.00593249]
[1725112304305,7.56012782,2524.1,2524.0,0.00593249]
[1725112304892,8.15301782,2524.1,2524.0,0.00593249]
[1725112305099,7.91532782,2524.1,2524.0,0.00593249]
[1725112305499,7.56012782,2524.1,2524.0,0.00593249]